fUST/lending_fUST_20250722
["ID","MTS","AMOUNT","RATE_DAILY","PERIOD"]
[373905973,1753147840159,-460.0,0.00017656,2]
[373905974,1753147840169,-460.0,0.00017656,2]
[373905975,1753147840179,-460.0,0.00017656,2]
[373905976,1753147840188,-460.0,0.00017656,2]
[373905977,1753147840198,-740.98,0.00017656,2]
[373905978,1753147840210,-460.0,0.00017656,2]
[373905980,1753147840220,-460.0,0.00017656,2]
[373905981,1753147840229,-791.46,0.00017656,2]
[373905982,1753147840238,-460.0,0.00017656,2]
[373905983,1753147840248,-1276.92,0.00017656,2]
[373905984,1753147840257,-664.11,0.00017656,2]
[373905985,1753147840266,-460.36881647,0.00017656,2]
[373905986,1753147840276,-460.0,0.00017656,2]
[373905987,1753147840285,-460.0,0.00017656,2]
[373905988,1753147840295,-615.85,0.00017656,2]
[373905989,1753147840305,-460.0,0.00017656,2]
[373905990,1753147840314,-460.0,0.00017656,2]
[373905991,1753147840324,-460.0,0.00017656,2]
[373905992,1753147840334,-460.0,0.00017656,2]
[373905993,1753147840343,-460.0,0.00017656,2]
[373905994,1753147840352,-460.0,0.00017656,2]
[373905995,1753147840362,-590.96505809,0.00017656,2]
[373905996,1753147840371,-460.0,0.00017656,2]
[373905997,1753147840380,-460.0,0.00017656,2]
[373905998,1753147840389,-520.16943935,0.00017656,2]
[373905999,1753147840399,-831.0,0.00017656,2]
[373906000,1753147840409,-460.0,0.00017656,2]
[373906001,1753147840418,-151.0,0.00017656,2]
[373906002,1753147840427,-480.65,0.00017656,2]
[373906003,1753147840437,-464.19262836,0.00017656,2]
[373906004,1753147840446,-512.14623085,0.00017656,2]
[373906005,1753147840455,-500.0,0.00017656,2]
[373906006,1753147840467,-500.0,0.00017656,2]
[373906007,1753147840476,-500.0,0.00017656,2]
[373906009,1753147840486,-502.9697911,0.00017656,2]
[373906010,1753147840495,-500.0,0.00017656,2]
[373906012,1753147840504,-478.96290637,0.00017656,2]
[373906015,1753147840514,-512.14623085,0.00017656,2]
[373906016,1753147840523,-398.92217689,0.00017656,2]
[373906017,1753147840533,-500.0,0.00017656,2]
[373906018,1753147840542,-500.0,0.00017656,2]
[373906019,1753147840551,-512.14623085,0.00017656,2]
[373906020,1753147840565,-500.32679306,0.00017656,2]
[373906021,1753147840574,-500.0,0.00017656,2]
[373906022,1753147840584,-512.14623085,0.00017656,2]
[373906023,1753147840593,-290.83902824,0.00017656,2]
[373906024,1753147840602,-512.14623085,0.00017656,2]
[373906026,1753147840611,-512.14623085,0.00017656,2]
[373906027,1753147840621,-500.0,0.00017656,2]
[373906028,1753147840631,-512.14623085,0.00017656,2]
[373906029,1753147840642,-500.0,0.00017656,2]
[373906030,1753147840652,-512.14623085,0.00017656,2]
[373906031,1753147840662,-512.14623085,0.00017656,2]
[373906032,1753147840672,-500.0,0.00017656,2]
[373906033,1753147840681,-512.14623085,0.00017656,2]
[373906034,1753147840694,-512.14623085,0.00017656,2]
[373906035,1753147840705,-512.14623085,0.00017656,2]
[373906036,1753147840717,-512.14623085,0.00017656,2]
[373906037,1753147840727,-512.14623085,0.00017656,2]
[373906038,1753147840736,-512.14623085,0.00017656,2]
[373906039,1753147840746,-512.14623085,0.00017656,2]
[373906040,1753147840755,-512.14623085,0.00017656,2]
[373906041,1753147840765,-512.14623085,0.00017656,2]
[373906042,1753147840774,-512.14623085,0.00017656,2]
[373906043,1753147840784,-512.14623085,0.00017656,2]
[373906044,1753147840793,-512.14623085,0.00017656,2]
[373906045,1753147840802,-512.14623085,0.00017656,2]
[373906046,1753147840811,-512.14623085,0.00017656,2]
[373906047,1753147840821,-512.14623085,0.00017656,2]
[373906048,1753147840831,-512.14623085,0.00017656,2]
[373906049,1753147840841,-512.14623085,0.00017656,2]
[373906050,1753147840850,-512.14623085,0.00017656,2]
[373906051,1753147840859,-512.14623085,0.00017656,2]
[373906052,1753147840868,-512.14623085,0.00017656,2]
[373906053,1753147840877,-512.14623085,0.00017656,2]
[373906054,1753147840886,-512.14623085,0.00017656,2]
[373906055,1753147840896,-512.14623085,0.00017656,2]
[373906056,1753147840905,-512.14623085,0.00017656,2]
[373906057,1753147840915,-512.14623085,0.00017656,2]
[373906058,1753147840924,-512.14623085,0.00017656,2]
[373906059,1753147840934,-512.14623085,0.00017656,2]
[373906060,1753147840943,-512.14623085,0.00017656,2]
[373906061,1753147840953,-512.14623085,0.00017656,2]
[373906062,1753147840964,-512.14623085,0.00017656,2]
[373906063,1753147840974,-512.14623085,0.00017656,2]
[373906064,1753147840983,-512.14623085,0.00017656,2]
[373906065,1753147840993,-512.14623085,0.00017656,2]
[373906066,1753147841002,-512.14623085,0.00017656,2]
[373906067,1753147841012,-512.14623085,0.00017656,2]
[373906068,1753147841022,-512.14623085,0.00017656,2]
[373906069,1753147841032,-512.14623085,0.00017656,2]
[373906070,1753147841042,-512.14623085,0.00017656,2]
[373906071,1753147841051,-512.14623085,0.00017656,2]
[373906072,1753147841061,-512.14623085,0.00017656,2]
[373906073,1753147841070,-512.14623085,0.00017656,2]
[373906074,1753147841079,-512.14623085,0.00017656,2]
[373906075,1753147841089,-512.14623085,0.00017656,2]
[373906076,1753147841098,-512.14623085,0.00017656,2]
[373906077,1753147841107,-512.14623085,0.00017656,2]
[373906078,1753147841117,-512.14623085,0.00017656,2]
[373906079,1753147841130,-512.14623085,0.00017656,2]
[373906080,1753147841139,-512.14623085,0.00017656,2]
[373906081,1753147841148,-512.14623085,0.00017656,2]
[373906082,1753147841157,-512.14623085,0.00017656,2]
[373906083,1753147841166,-460.0,0.00017656,2]
[373906084,1753147841177,-512.14623085,0.00017656,2]
[373906085,1753147841186,-512.14623085,0.00017656,2]
[373906086,1753147841195,-512.14623085,0.00017656,2]
[373906087,1753147841204,-512.14623085,0.00017656,2]
[373906088,1753147841217,-512.14623085,0.00017656,2]
[373906089,1753147841227,-463.36003505,0.00017656,2]
[373906090,1753147841236,-104461.05010166,0.00017657,2]
[373906091,1753147841245,-6297.19453409,0.00017657,2]
[373906092,1753147841254,-500.0,0.00017673,2]
[373906093,1753147841264,-500.0,0.00017673,2]
[373906094,1753147841273,-500.0,0.00017673,2]
[373906095,1753147841284,-460.0,0.00017756,2]
[373906096,1753147841294,-198.84958474,0.00017756,2]
[373906097,1753147841303,-460.0,0.00017756,2]
[373906098,1753147841313,-460.0,0.00017756,2]
[373906099,1753147841322,-5471.31,0.00017756,2]
[373906100,1753147841332,-460.0,0.00017756,2]
[373906101,1753147841341,-460.0,0.00017756,2]
[373906102,1753147841350,-460.0,0.00017756,2]
[373906103,1753147841359,-902.58,0.00017756,2]
[373906104,1753147841368,-3041.33,0.00017756,2]
[373906105,1753147841378,-735.69,0.00017756,2]
[373906106,1753147841386,-460.0,0.00017756,2]
[373906107,1753147841395,-169.32318871,0.00017756,2]
[373906108,1753147841404,-460.0,0.00017756,2]
[373906109,1753147841413,-460.0,0.00017756,2]
[373906110,1753147841422,-460.0,0.00017756,2]
[373906111,1753147841430,-460.0,0.00017756,2]
[373906112,1753147841439,-460.0,0.00017756,2]
[373906113,1753147841448,-951.62,0.00017756,2]
[373906114,1753147841457,-460.0,0.00017756,2]
[373906115,1753147841468,-460.0,0.00017756,2]
[373906116,1753147841477,-460.0,0.00017756,2]
[373906117,1753147841487,-460.0,0.00017756,2]
[373906118,1753147841496,-460.0,0.00017756,2]
[373906119,1753147841505,-460.04491976,0.00017756,2]
[373906120,1753147841514,-470.43062227,0.00017756,2]
[373906121,1753147841523,-460.0,0.00017756,2]
[373906122,1753147841533,-460.0,0.00017756,2]
[373906123,1753147841542,-500.0,0.00017756,2]
[373906124,1753147841552,-500.0,0.00017756,2]
[373906125,1753147841561,-500.0,0.00017756,2]
[373906126,1753147841570,-500.0,0.00017756,2]
[373906127,1753147841580,-470.92793417,0.00017756,2]
[373906128,1753147841589,-1851.16,0.00017756,2]
[373906129,1753147841599,-1121.71,0.00017756,2]
[373906130,1753147841608,-460.0,0.00017756,2]
[373906131,1753147841618,-460.0,0.00017756,2]
[373906133,1753147841628,-460.0,0.00017756,2]
[373906134,1753147841637,-460.0,0.00017756,2]
[373906135,1753147841646,-240.32112447,0.00017756,2]
[373906136,1753147841656,-460.0,0.00017756,2]
[373906137,1753147841666,-460.0,0.00017756,2]
[373906138,1753147841675,-460.0,0.00017756,2]
[373906139,1753147841685,-460.0,0.00017756,2]
[373906140,1753147841695,-1229.04,0.00017756,2]
[373906141,1753147841704,-756.82,0.00017756,2]
[373906142,1753147841715,-460.0,0.00017756,2]
[373906144,1753147841725,-224.49972482,0.00017756,2]
[373906145,1753147841734,-460.0,0.00017756,2]
[373906147,1753147841744,-460.0,0.00017756,2]
[373906149,1753147841754,-460.0,0.00017756,2]
[373906151,1753147841763,-460.0,0.00017756,2]
[373906153,1753147841773,-460.0,0.00017756,2]
[373906154,1753147841782,-460.0,0.00017756,2]
[373906155,1753147841791,-766.42,0.00017756,2]
[373906156,1753147841801,-460.0,0.00017756,2]
[373906157,1753147841810,-460.0,0.00017756,2]
[373906158,1753147841820,-312.02226483,0.00017756,2]
[373906160,1753147841829,-460.0,0.00017756,2]
[373906161,1753147841839,-1480.48,0.00017756,2]
[373906162,1753147841848,-460.0,0.00017756,2]
[373906163,1753147841857,-460.0,0.00017756,2]
[373906164,1753147841866,-762.6,0.00017756,2]
[373906165,1753147841875,-465.13563042,0.00017756,2]
[373906166,1753147841885,-500.0,0.00017756,2]
[373906167,1753147841894,-500.0,0.00017756,2]
[373906168,1753147841903,-500.0,0.00017756,2]
[373906169,1753147841912,-500.0,0.00017756,2]
[373906170,1753147841922,-460.0,0.00017757,2]
[373906171,1753147841931,-460.0,0.00017757,2]
[373906172,1753147841940,-460.0,0.00017757,2]
[373906173,1753147841950,-460.0,0.00017757,2]
[373906174,1753147841959,-460.0,0.00017757,2]
[373906175,1753147841969,-460.0,0.00017757,2]
[373906176,1753147841978,-460.0,0.00017757,2]
[373906177,1753147841988,-460.0,0.00017757,2]
[373906178,1753147841996,-460.0,0.00017757,2]
[373906179,1753147842006,-577.17,0.00017757,2]
[373906180,1753147842147,-460.0,0.00017757,2]
[373906181,1753147842157,-460.0,0.00017757,2]
[373906182,1753147842167,-498.78556739,0.00017757,2]
[373906183,1753147842178,-460.0,0.00017757,2]
[373906184,1753147842187,-460.0,0.00017757,2]
[373906185,1753147842197,-460.0,0.00017757,2]
[373906186,1753147842207,-460.0,0.00017757,2]
[373906187,1753147842219,-460.0,0.00017757,2]
[373906188,1753147842228,-1758.06,0.00017757,2]
[373906189,1753147842237,-1799.79,0.00017757,2]
[373906190,1753147842247,-460.0,0.00017757,2]
[373906191,1753147842256,-460.0,0.00017757,2]
[373906192,1753147842265,-460.0,0.00017757,2]
[373906193,1753147842274,-1796.61,0.00017757,2]
[373906194,1753147842284,-448.04133828,0.00017757,2]
[373906195,1753147842294,-460.0,0.00017757,2]
[373906196,1753147842303,-460.0,0.00017757,2]
[373906197,1753147842313,-460.0,0.00017757,2]
[373906198,1753147842322,-2488.41,0.00017757,2]
[373906199,1753147842332,-460.0,0.00017757,2]
[373906200,1753147842341,-697.66,0.00017757,2]
[373906201,1753147842350,-1689.88,0.00017757,2]
[373906202,1753147842359,-523.62,0.00017757,2]
[373906203,1753147842369,-460.0,0.00017757,2]
[373906204,1753147842378,-461.7462564,0.00017757,2]
[373906205,1753147842387,-5687.82,0.00017757,2]
[373906206,1753147842396,-500.0,0.00017758,2]
[373906207,1753147842406,-500.0,0.00017758,2]
[373906208,1753147842414,-504.93958316,0.00017773,2]
[373906209,1753147842423,-1950.87479935,0.00017798,2]
[373906210,1753147842433,-180.7831423,0.000178,2]
[373906211,1753147842442,-250.0,0.00017843,2]
[373906212,1753147842452,-151.0,0.00017877,2]
[373906213,1753147842462,-151.0,0.00017877,2]
[373906214,1753147842472,-215.0738,0.00017877,2]
[373906215,1753147842482,-151.0,0.00017877,2]
[373906216,1753147842491,-151.0,0.00017877,2]
[373906217,1753147842500,-151.0,0.00017877,2]
[373906218,1753147842509,-151.31159332,0.00017877,2]
[373906219,1753147842519,-151.0,0.00017877,2]
[373906220,1753147842528,-151.0,0.00017877,2]
[373906221,1753147842537,-151.0,0.00017877,2]
[373906222,1753147842546,-151.0,0.00017877,2]
[373906223,1753147842556,-191.47040795,0.00017877,2]
[373906224,1753147842565,-151.0,0.00017877,2]
[373906225,1753147842574,-151.0,0.00017877,2]
[373906226,1753147842584,-151.0,0.00017877,2]
[373906227,1753147842593,-3817.54035745,0.00017877,2]
[373906228,1753147842602,-151.0,0.00017877,2]
[373906229,1753147842611,-151.0,0.00017877,2]
[373906230,1753147842621,-151.0,0.00017877,2]
[373906231,1753147842630,-151.0,0.00017877,2]
[373906232,1753147842639,-151.0,0.00017877,2]
[373906233,1753147842649,-151.0,0.00017877,2]
[373906234,1753147842659,-151.0,0.00017877,2]
[373906235,1753147842668,-152.90526298,0.00017877,2]
[373906236,1753147842677,-151.0,0.00017877,2]
[373906237,1753147842687,-151.0,0.00017877,2]
[373906238,1753147842695,-151.0,0.00017877,2]
[373906239,1753147842705,-151.0,0.00017877,2]
[373906240,1753147842717,-151.0,0.00017877,2]
[373906241,1753147842726,-151.0,0.00017877,2]
[373906242,1753147842736,-152.19962789,0.00017877,2]
[373906243,1753147842745,-151.0,0.00017877,2]
[373906244,1753147842755,-151.0,0.00017877,2]
[373906245,1753147842764,-154.78684829,0.00017877,2]
[373906246,1753147842774,-25000.0,0.00017877,2]
[373906247,1753147842783,-8508.82860009,0.00017877,2]
[373906248,1753147842793,-335.02733782,0.000179,2]
[373906249,1753147842802,-6717.38907129,0.000179,2]
[373906250,1753147842812,-460.0,0.00017928,2]
[373906251,1753147842821,-460.0,0.00017929,2]
[373906252,1753147842831,-460.0,0.00017929,2]
[373906253,1753147842840,-460.0,0.00017929,2]
[373906254,1753147842850,-1583.92,0.00017929,2]
[373906255,1753147842859,-916.51,0.00017929,2]
[373906256,1753147842868,-383.60435212,0.00017929,2]
[373906257,1753147842879,-557.31,0.00017929,2]
[373906258,1753147842888,-460.0,0.00017929,2]
[373906259,1753147842897,-3120.5,0.00017929,2]
[373906260,1753147842907,-503.23,0.00017929,2]
[373906261,1753147842916,-477.75,0.00017929,2]
[373906262,1753147842926,-1968.28,0.00017929,2]
[373906263,1753147842935,-1276.63,0.00017929,2]
[373906264,1753147842945,-698.63,0.00017929,2]
[373906265,1753147842954,-292.9823536,0.00017929,2]
[373906266,1753147842965,-516.0,0.0001793,2]
[373906267,1753147842975,-831.0,0.0001793,2]
[373906268,1753147842984,-151.0,0.0001793,2]
[373906269,1753147842993,-460.0,0.0001793,2]
[373906270,1753147843003,-460.0,0.0001793,2]
[373906271,1753147843012,-460.0,0.0001793,2]
[373906272,1753147843022,-460.0,0.0001793,2]
[373906273,1753147843031,-347.79210809,0.0001793,2]
[373906274,1753147843041,-460.0,0.0001793,2]
[373906275,1753147843051,-460.0,0.0001793,2]
[373906276,1753147843060,-460.0,0.0001793,2]
[373906277,1753147843070,-460.0,0.0001793,2]
[373906278,1753147843079,-460.0,0.0001793,2]
[373906279,1753147843089,-460.0,0.0001793,2]
[373906280,1753147843098,-460.0,0.0001793,2]
[373906281,1753147843108,-460.0,0.0001793,2]
[373906282,1753147843118,-460.0,0.0001793,2]
[373906283,1753147843131,-460.0,0.0001793,2]
[373906284,1753147843140,-460.0,0.0001793,2]
[373906285,1753147843150,-460.0,0.0001793,2]
[373906286,1753147843160,-460.0,0.0001793,2]
[373906287,1753147843170,-460.0,0.0001793,2]
[373906288,1753147843180,-460.0,0.0001793,2]
[373906289,1753147843189,-460.0,0.0001793,2]
[373906290,1753147843198,-494.02,0.0001793,2]
[373906291,1753147843211,-833.31,0.0001793,2]
[373906292,1753147843221,-557.11,0.0001793,2]
[373906293,1753147843231,-610.61,0.0001793,2]
[373906294,1753147843240,-599.52,0.0001793,2]
[373906295,1753147843249,-884.65,0.0001793,2]
[373906296,1753147843259,-889.3,0.0001793,2]
[373906297,1753147843268,-460.0,0.0001793,2]
[373906298,1753147843278,-316.5767879,0.0001793,2]
[373906299,1753147843288,-460.0,0.0001793,2]
[373906301,1753147843297,-460.0,0.0001793,2]
[373906303,1753147843306,-460.0,0.0001793,2]
[373906305,1753147843316,-544.43,0.0001793,2]
[373906307,1753147843325,-460.0,0.0001793,2]
[373906308,1753147843335,-460.0,0.0001793,2]
[373906310,1753147843344,-496.32,0.0001793,2]
[373906311,1753147843354,-460.0,0.0001793,2]
[373906312,1753147843363,-460.0,0.0001793,2]
[373906313,1753147843373,-797.62,0.0001793,2]
[373906314,1753147843383,-460.0,0.0001793,2]
[373906316,1753147843392,-460.0,0.0001793,2]
[373906318,1753147843401,-460.0,0.0001793,2]
[373906319,1753147843410,-407.54,0.0001793,2]
[373906320,1753147843420,-740.98,0.0001793,2]
[373906321,1753147843429,-791.46,0.0001793,2]
[373906322,1753147843438,-460.0,0.0001793,2]
[373906323,1753147843448,-1276.92,0.0001793,2]
[373906325,1753147843457,-664.11,0.0001793,2]
[373906326,1753147843468,-460.0,0.0001793,2]
[373906328,1753147843477,-615.85,0.0001793,2]
[373906330,1753147843486,-460.0,0.0001793,2]
[373906331,1753147843496,-460.0,0.0001793,2]
[373906332,1753147843505,-460.0,0.0001793,2]
[373906333,1753147843515,-460.0,0.0001793,2]
[373906334,1753147843524,-460.0,0.0001793,2]
[373906335,1753147843534,-480.65,0.0001793,2]
[373906336,1753147843543,-460.0,0.0001793,2]
[373906337,1753147843553,-460.0,0.0001803,2]
[373906338,1753147843563,-460.0,0.0001803,2]
[373906339,1753147843572,-5471.31,0.0001803,2]
[373906340,1753147843582,-460.0,0.0001803,2]
[373906341,1753147843591,-460.0,0.0001803,2]
[373906342,1753147843601,-902.58,0.0001803,2]
[373906343,1753147843610,-3041.33,0.0001803,2]
[373906344,1753147843620,-735.69,0.0001803,2]
[373906345,1753147843629,-460.0,0.0001803,2]
[373906346,1753147843639,-460.0,0.0001803,2]
[373906347,1753147843648,-460.0,0.0001803,2]
[373906348,1753147843658,-460.0,0.0001803,2]
[373906349,1753147843667,-951.62,0.0001803,2]
[373906350,1753147843677,-460.0,0.0001803,2]
[373906351,1753147843686,-460.0,0.0001803,2]
[373906352,1753147843698,-460.0,0.0001803,2]
[373906353,1753147843708,-460.0,0.0001803,2]
[373906354,1753147843720,-249.73,0.0001803,2]
[373906355,1753147843730,-1851.16,0.0001803,2]
[373906357,1753147843740,-1121.71,0.0001803,2]
[373906359,1753147843750,-460.0,0.0001803,2]
[373906361,1753147843760,-460.0,0.0001803,2]
[373906363,1753147843769,-460.0,0.0001803,2]
[373906365,1753147843778,-460.0,0.0001803,2]
[373906367,1753147843787,-460.0,0.0001803,2]
[373906369,1753147843797,-460.0,0.0001803,2]
[373906371,1753147843806,-1229.04,0.0001803,2]
[373906373,1753147843815,-756.82,0.0001803,2]
[373906375,1753147843825,-460.0,0.0001803,2]
[373906377,1753147843834,-460.0,0.0001803,2]
[373906379,1753147843843,-460.0,0.0001803,2]
[373906381,1753147843852,-460.0,0.0001803,2]
[373906383,1753147843862,-766.42,0.0001803,2]
[373906385,1753147843871,-460.0,0.0001803,2]
[373906387,1753147843886,-460.0,0.0001803,2]
[373906389,1753147843895,-1480.48,0.0001803,2]
[373906391,1753147843905,-460.0,0.0001803,2]
[373906393,1753147843914,-762.6,0.0001803,2]
[373906395,1753147843924,-500.0,0.0001803,2]
[373906397,1753147843934,-500.0,0.0001803,2]
[373906399,1753147843943,-460.0,0.00018031,2]
[373906401,1753147843953,-460.0,0.00018031,2]
[373906403,1753147843964,-460.0,0.00018031,2]
[373906405,1753147843974,-298.37072537,0.00018031,2]
[373906407,1753147843984,-460.0,0.00018031,2]
[373906409,1753147843993,-460.0,0.00018031,2]
[373906411,1753147844003,-1758.06,0.00018031,2]
[373906413,1753147844012,-1799.79,0.00018031,2]
[373906415,1753147844022,-460.0,0.00018031,2]
[373906417,1753147844031,-460.0,0.00018031,2]
[373906419,1753147844041,-1796.61,0.00018031,2]
[373906421,1753147844050,-460.0,0.00018031,2]
[373906423,1753147844060,-2488.41,0.00018031,2]
[373906425,1753147844069,-697.66,0.00018031,2]
[373906427,1753147844078,-1689.88,0.00018031,2]
[373906429,1753147844087,-523.62,0.00018031,2]
[373906431,1753147844097,-464.37157232,0.00018031,2]
[373906433,1753147844106,-5687.82,0.00018031,2]
[373906435,1753147844116,-500.0,0.00018031,2]
[373906437,1753147844130,-796.68081091,0.00018066,2]
[373906439,1753147844140,-6717.38907121,0.00018072,2]
[373906441,1753147844149,-150.0,0.00018123,2]
[373906443,1753147844158,-504.81165985,0.00018141,2]
[373906445,1753147844168,-486.69610021,0.00018141,2]
[373906447,1753147844178,-500.0,0.00018157,2]
[373906450,1753147844187,-159.56192289,0.00018157,2]
[373906452,1753147844200,-500.0,0.00018157,2]
[373906454,1753147844209,-500.0,0.00018157,2]
[373906455,1753147844218,-500.0,0.00018157,2]
[373906457,1753147844228,-500.0,0.00018157,2]
[373906460,1753147844237,-500.0,0.00018164,2]
[373906461,1753147844246,-326.0,0.00018198,2]
[373906462,1753147844257,-470.10637857,0.00018202,2]
[373906464,1753147844267,-460.0,0.00018203,2]
[373906466,1753147844276,-460.0,0.00018203,2]
[373906468,1753147844285,-1583.92,0.00018203,2]
[373906470,1753147844294,-916.51,0.00018203,2]
[373906472,1753147844304,-557.31,0.00018203,2]
[373906474,1753147844313,-460.0,0.00018203,2]
[373906476,1753147844323,-3120.5,0.00018203,2]
[373906478,1753147844332,-503.23,0.00018203,2]
[373906480,1753147844341,-477.75,0.00018203,2]
[373906482,1753147844351,-1968.28,0.00018203,2]
[373906484,1753147844360,-1276.63,0.00018203,2]
[373906486,1753147844369,-698.63,0.00018203,2]
[373906488,1753147844379,-516.0,0.00018204,2]
[373906490,1753147844388,-831.0,0.00018204,2]
[373906492,1753147844398,-247.18002192,0.00018204,2]
[373906494,1753147844407,-460.0,0.00018204,2]
[373906496,1753147844417,-460.0,0.00018204,2]
[373906498,1753147844426,-460.0,0.00018204,2]
[373906500,1753147844435,-460.0,0.00018204,2]
[373906502,1753147844444,-460.0,0.00018204,2]
[373906504,1753147844454,-460.0,0.00018204,2]
[373906506,1753147844465,-460.0,0.00018204,2]
[373906508,1753147844475,-460.0,0.00018204,2]
[373906510,1753147844485,-460.0,0.00018204,2]
[373906512,1753147844494,-460.0,0.00018204,2]
[373906514,1753147844503,-460.0,0.00018204,2]
[373906516,1753147844513,-460.0,0.00018204,2]
[373906518,1753147844523,-460.0,0.00018204,2]
[373906520,1753147844533,-460.0,0.00018204,2]
[373906521,1753147844542,-151.0,0.00018204,2]
[373906523,1753147844552,-151.0,0.00018204,2]
[373906525,1753147844561,-460.0,0.00018204,2]
[373906527,1753147844571,-460.0,0.00018204,2]
[373906529,1753147844581,-151.0,0.00018204,2]
[373906531,1753147844590,-151.0,0.00018204,2]
[373906533,1753147844599,-151.0,0.00018204,2]
[373906535,1753147844608,-460.0,0.00018204,2]
[373906537,1753147844617,-494.02,0.00018204,2]
[373906538,1753147844627,-833.31,0.00018204,2]
[373906539,1753147844637,-557.11,0.00018204,2]
[373906540,1753147844647,-610.61,0.00018204,2]
[373906541,1753147844656,-599.52,0.00018204,2]
[373906542,1753147844665,-884.65,0.00018204,2]
[373906543,1753147844675,-889.3,0.00018204,2]
[373906544,1753147844684,-460.0,0.00018204,2]
[373906545,1753147844694,-460.0,0.00018204,2]
[373906546,1753147844703,-460.0,0.00018204,2]
[373906547,1753147844714,-544.43,0.00018204,2]
[373906548,1753147844723,-460.0,0.00018204,2]
[373906549,1753147844733,-496.32,0.00018204,2]
[373906550,1753147844742,-460.0,0.00018204,2]
[373906551,1753147844751,-460.0,0.00018204,2]
[373906552,1753147844761,-797.62,0.00018204,2]
[373906553,1753147844771,-460.0,0.00018204,2]
[373906554,1753147844780,-460.0,0.00018204,2]
[373906555,1753147844789,-460.0,0.00018204,2]
[373906556,1753147844799,-740.98,0.00018204,2]
[373906557,1753147844809,-791.46,0.00018204,2]
[373906558,1753147844818,-460.0,0.00018204,2]
[373906559,1753147844827,-1276.92,0.00018204,2]
[373906560,1753147844837,-664.11,0.00018204,2]
[373906561,1753147844846,-460.0,0.00018204,2]
[373906562,1753147844856,-151.0,0.00018204,2]
[373906563,1753147844865,-615.85,0.00018204,2]
[373906564,1753147844875,-151.0,0.00018204,2]
[373906565,1753147844884,-460.0,0.00018204,2]
[373906566,1753147844893,-460.0,0.00018204,2]
[373906567,1753147844903,-460.0,0.00018204,2]
[373906568,1753147844912,-151.0,0.00018204,2]
[373906569,1753147844922,-151.0,0.00018204,2]
[373906570,1753147844931,-460.0,0.00018204,2]
[373906571,1753147844940,-151.0,0.00018204,2]
[373906572,1753147844950,-480.65,0.00018204,2]
[373906573,1753147844959,-460.0,0.00018204,2]
[373906574,1753147844969,-501.05616318,0.00018221,2]
[373906575,1753147844978,-500.0,0.00018226,2]
[373906576,1753147844987,-500.0,0.00018226,2]
[373906577,1753147844997,-900.0,0.00018235,2]
[373906578,1753147845007,-6717.38907121,0.00018245,2]
[373906579,1753147845017,-460.0,0.00018304,2]
[373906580,1753147845026,-460.0,0.00018304,2]
[373906581,1753147845035,-5471.31,0.00018304,2]
[373906582,1753147845047,-460.0,0.00018304,2]
[373906583,1753147845176,-460.0,0.00018304,2]
[373906584,1753147845186,-902.58,0.00018304,2]
[373906585,1753147845195,-3041.33,0.00018304,2]